[Event "Live Chess"]
[Site "Chess.com"]
[Date "2024.06.01"]
[Round "-"]
[White "Sokolik_UA"]
[Black "rakibsachchu"]
[Result "0-1"]
[WhiteElo "797"]
[BlackElo "1551"]
[TimeControl "300"]
[EndTime "10:51:00 PDT"]
[Termination "rakibsachchu won by checkmate"]

1. e4 {[%clk 0:04:57.5]} 1... c5 {[%clk 0:04:57.2]} 2. d4 {[%clk 0:04:56.7]}
2... cxd4 {[%clk 0:04:55.9]} 3. Qxd4 {[%clk 0:04:55.6]} 3... Nc6 {[%clk
0:04:53.1]} 4. Qe3 {[%clk 0:04:55.1]} 4... e5 {[%clk 0:04:48]} 5. Bd2 {[%clk
0:04:54.6]} 5... Nf6 {[%clk 0:04:45.2]} 6. Bc4 {[%clk 0:04:49.7]} 6... Nd4
{[%clk 0:04:36]} 7. Qc3 {[%clk 0:04:43]} 7... Bb4 {[%clk 0:04:29.9]} 8. Qd3
{[%clk 0:04:24.6]} 8... O-O {[%clk 0:04:12.4]} 9. c3 {[%clk 0:04:23.2]} 9... d5
{[%clk 0:03:59.7]} 10. cxb4 {[%clk 0:04:20.5]} 10... dxc4 {[%clk 0:03:55.2]} 11.
Qxc4 {[%clk 0:04:16.8]} 11... Be6 {[%clk 0:03:53.7]} 12. Qd3 {[%clk 0:04:12.6]}
12... Rc8 {[%clk 0:03:49.2]} 13. Ne2 {[%clk 0:04:11.7]} 13... Nc2+ {[%clk
0:03:45.2]} 14. Kf1 {[%clk 0:04:01]} 14... Qxd3 {[%clk 0:03:42]} 15. Nc3 {[%clk
0:03:57.2]} 15... Nxa1 {[%clk 0:03:33]} 16. h3 {[%clk 0:03:54.9]} 16... Rxc3
{[%clk 0:03:25.4]} 17. Bxc3 {[%clk 0:03:51.8]} 17... Nxe4 {[%clk 0:03:23.7]} 18.
Bxe5 {[%clk 0:03:48.2]} 18... Bc4 {[%clk 0:03:21.7]} 19. Kg1 {[%clk 0:03:45.6]}
19... Qxe2 {[%clk 0:03:16.8]} 20. b3 {[%clk 0:03:40.9]} 20... Qxf2+ {[%clk
0:03:15]} 21. Kh2 {[%clk 0:03:40.1]} 21... Nd2 {[%clk 0:03:06.9]} 22. Rxa1
{[%clk 0:03:37.7]} 22... Nf3+ {[%clk 0:03:05.1]} 23. Kh1 {[%clk 0:03:36]} 23...
Bf1 {[%clk 0:03:00.2]} 24. b5 {[%clk 0:03:28.9]} 24... Qxg2# {[%clk 0:02:57.4]}
0-1

[Event "Live Chess"]
[Site "Chess.com"]
[Date "2024.06.01"]
[Round "-"]
[White "Ksenia_2013"]
[Black "nigelst"]
[Result "0-1"]
[WhiteElo "767"]
[BlackElo "1711"]
[TimeControl "300"]
[EndTime "10:51:04 PDT"]
[Termination "nigelst won by checkmate"]

1. e4 {[%clk 0:04:57.5]} 1... c6 {[%clk 0:04:58.9]} 2. Bc4 {[%clk 0:04:55.9]}
2... d5 {[%clk 0:04:51.1]} 3. exd5 {[%clk 0:04:54.3]} 3... cxd5 {[%clk
0:04:48.6]} 4. Bxd5 {[%clk 0:04:53.2]} 4... Qxd5 {[%clk 0:04:46.6]} 5. Nc3
{[%clk 0:04:52]} 5... Qd8 {[%clk 0:04:43.2]} 6. Ne4 {[%clk 0:04:50.7]} 6... e5
{[%clk 0:04:41.1]} 7. Qf3 {[%clk 0:04:49.3]} 7... Nf6 {[%clk 0:04:37.8]} 8. Ng5
{[%clk 0:04:42.1]} 8... Nc6 {[%clk 0:04:29.4]} 9. N1h3 {[%clk 0:04:35]} 9... Be7
{[%clk 0:04:26.9]} 10. O-O {[%clk 0:04:28.9]} 10... O-O {[%clk 0:04:24.6]} 11.
Nf4 {[%clk 0:04:26]} 11... exf4 {[%clk 0:04:15.6]} 12. Qxf4 {[%clk 0:04:24.7]}
12... Qd4 {[%clk 0:04:06.3]} 13. Qg3 {[%clk 0:04:18.7]} 13... Bd6 {[%clk
0:04:01.1]} 14. Qh3 {[%clk 0:04:15.2]} 14... Qg4 {[%clk 0:03:59.1]} 15. Qxg4
{[%clk 0:04:08.4]} 15... Nxg4 {[%clk 0:03:57.4]} 16. f3 {[%clk 0:04:03.7]} 16...
Bc5+ {[%clk 0:03:50.8]} 17. Kh1 {[%clk 0:04:01]} 17... Nf6 {[%clk 0:03:47.6]}
18. f4 {[%clk 0:03:55.8]} 18... Nd4 {[%clk 0:03:45]} 19. c3 {[%clk 0:03:53.9]}
19... Ne2 {[%clk 0:03:41.5]} 20. Rf3 {[%clk 0:03:50.8]} 20... Nxc1 {[%clk
0:03:37.5]} 21. Rxc1 {[%clk 0:03:49]} 21... Bg4 {[%clk 0:03:36.1]} 22. Rh3
{[%clk 0:03:47.2]} 22... Bxh3 {[%clk 0:03:34.6]} 23. gxh3 {[%clk 0:03:46.2]}
23... Rad8 {[%clk 0:03:31.7]} 24. f5 {[%clk 0:03:42.7]} 24... Rxd2 {[%clk
0:03:29.3]} 25. Rg1 {[%clk 0:03:40.1]} 25... Bxg1 {[%clk 0:03:27]} 26. Kxg1
{[%clk 0:03:38.5]} 26... Re8 {[%clk 0:03:26.4]} 27. Nf3 {[%clk 0:03:23.8]} 27...
Rxb2 {[%clk 0:03:22.2]} 28. h4 {[%clk 0:03:20.6]} 28... Rd8 {[%clk 0:03:21.1]}
29. h5 {[%clk 0:03:18.8]} 29... Rd1+ {[%clk 0:03:19.7]} 30. Ne1 {[%clk
0:03:13.6]} 30... Rxe1# {[%clk 0:03:18]} 0-1

[Event "Live Chess"]
[Site "Chess.com"]
[Date "2024.06.01"]
[Round "-"]
[White "E2E4colchester"]
[Black "RuslanChessN"]
[Result "1-0"]
[WhiteElo "1506"]
[BlackElo "1928"]
[TimeControl "300"]
[EndTime "10:51:08 PDT"]
[Termination "E2E4colchester won by resignation"]

1. d4 {[%clk 0:04:57.5]} 1... d5 {[%clk 0:04:58.1]} 2. c4 {[%clk 0:04:55.4]}
2... Bf5 {[%clk 0:04:56.7]} 3. e3 {[%clk 0:04:52]} 3... e6 {[%clk 0:04:55.2]} 4.
Nc3 {[%clk 0:04:49.8]} 4... Nf6 {[%clk 0:04:52.8]} 5. c5 {[%clk 0:04:45.7]} 5...
c6 {[%clk 0:04:49.3]} 6. Nf3 {[%clk 0:04:43.4]} 6... Nbd7 {[%clk 0:04:45.2]} 7.
Bd3 {[%clk 0:04:42.3]} 7... Bg4 {[%clk 0:04:43]} 8. h3 {[%clk 0:04:40.8]} 8...
Bh5 {[%clk 0:04:40.3]} 9. g4 {[%clk 0:04:38.4]} 9... Bg6 {[%clk 0:04:19.7]} 10.
Bxg6 {[%clk 0:04:36.3]} 10... hxg6 {[%clk 0:04:18.1]} 11. b4 {[%clk 0:04:33]}
11... Nxg4 {[%clk 0:04:16.1]} 12. Ne5 {[%clk 0:04:20.5]} 12... Ngxe5 {[%clk
0:04:13.8]} 13. dxe5 {[%clk 0:04:18.2]} 13... Nxe5 {[%clk 0:04:12.8]} 14. Bb2
{[%clk 0:04:06]} 14... Qf6 {[%clk 0:04:04.3]} 15. Qe2 {[%clk 0:04:03]} 15...
Nf3+ {[%clk 0:03:53.6]} 16. Kd1 {[%clk 0:03:55]} 16... Ng5 {[%clk 0:03:47.4]}
17. Nxd5 {[%clk 0:03:50.7]} 1-0

[Event "Live Chess"]
[Site "Chess.com"]
[Date "2024.06.01"]
[Round "-"]
[White "Mangoalo"]
[Black "viktorskliarov"]
[Result "0-1"]
[WhiteElo "1013"]
[BlackElo "2643"]
[TimeControl "300"]
[EndTime "10:51:11 PDT"]
[Termination "viktorskliarov won by resignation"]

1. e4 {[%clk 0:04:57.9]} 1... c5 {[%clk 0:04:57.7]} 2. Nf3 {[%clk 0:04:57.1]}
2... Nc6 {[%clk 0:04:55.6]} 3. d4 {[%clk 0:04:56.5]} 3... cxd4 {[%clk
0:04:55.2]} 4. Nxd4 {[%clk 0:04:56]} 4... Nf6 {[%clk 0:04:54.9]} 5. Nc3 {[%clk
0:04:55.4]} 5... g6 {[%clk 0:04:53.7]} 6. Bg5 {[%clk 0:04:54.8]} 6... Bg7 {[%clk
0:04:52.5]} 7. f4 {[%clk 0:04:53.9]} 7... O-O {[%clk 0:04:45.9]} 8. e5 {[%clk
0:04:53.1]} 8... Ne8 {[%clk 0:04:41.2]} 9. Bb5 {[%clk 0:04:51.4]} 9... a6 {[%clk
0:04:26.8]} 10. Bxc6 {[%clk 0:04:49.7]} 10... dxc6 {[%clk 0:04:26.1]} 11. O-O
{[%clk 0:04:44.3]} 11... Nc7 {[%clk 0:04:23.3]} 12. Nf3 {[%clk 0:04:42.7]} 12...
f6 {[%clk 0:04:15.2]} 13. exf6 {[%clk 0:04:40.3]} 13... exf6 {[%clk 0:04:14.3]}
14. Bh4 {[%clk 0:04:38.6]} 14... Bf5 {[%clk 0:04:08.8]} 15. h3 {[%clk 0:04:23]}
15... Qxd1 {[%clk 0:03:58.9]} 16. Raxd1 {[%clk 0:04:20.1]} 16... Rad8 {[%clk
0:03:57.6]} 17. Rxd8 {[%clk 0:04:11.3]} 17... Rxd8 {[%clk 0:03:57.5]} 18. Rd1
{[%clk 0:04:10.2]} 18... Rxd1+ {[%clk 0:03:55.6]} 19. Nxd1 {[%clk 0:04:10.1]}
19... Bxc2 {[%clk 0:03:54.8]} 20. Nc3 {[%clk 0:04:09.3]} 20... Nb5 {[%clk
0:03:47.8]} 21. Nxb5 {[%clk 0:04:07]} 21... axb5 {[%clk 0:03:46.7]} 22. a3
{[%clk 0:04:06.9]} 22... f5 {[%clk 0:03:40.4]} 23. Nd4 {[%clk 0:04:05.5]} 23...
Bxd4+ {[%clk 0:03:39]} 24. Kh1 {[%clk 0:04:03.7]} 24... Bxb2 {[%clk 0:03:38.9]}
25. a4 {[%clk 0:04:02.1]} 25... Bxa4 {[%clk 0:03:37.5]} 26. Bf6 {[%clk 0:04:02]}
26... Bxf6 {[%clk 0:03:36.4]} 0-1

[Event "Live Chess"]
[Site "Chess.com"]
[Date "2024.06.01"]
[Round "-"]
[White "CarmelJane"]
[Black "DoctorMantisTobogganMD"]
[Result "0-1"]
[WhiteElo "2087"]
[BlackElo "2189"]
[TimeControl "300"]
[EndTime "10:51:16 PDT"]
[Termination "DoctorMantisTobogganMD won by resignation"]

1. e4 {[%clk 0:04:57.8]} 1... c6 {[%clk 0:04:52.1]} 2. d4 {[%clk 0:04:55.5]}
2... g6 {[%clk 0:04:51.3]} 3. Nc3 {[%clk 0:04:53.4]} 3... Bg7 {[%clk 0:04:50.7]}
4. Be3 {[%clk 0:04:52.5]} 4... d5 {[%clk 0:04:50.1]} 5. e5 {[%clk 0:04:51.4]}
5... h5 {[%clk 0:04:48.8]} 6. Qd2 {[%clk 0:04:49.7]} 6... b5 {[%clk 0:04:48.1]}
7. h3 {[%clk 0:04:45.1]} 7... a5 {[%clk 0:04:47.1]} 8. f4 {[%clk 0:04:38.6]}
8... Nh6 {[%clk 0:04:44.5]} 9. Nf3 {[%clk 0:04:33.5]} 9... Bf5 {[%clk
0:04:39.2]} 10. Ng5 {[%clk 0:04:20.3]} 10... f6 {[%clk 0:04:26.1]} 11. Nf3
{[%clk 0:04:15.1]} 11... Nf7 {[%clk 0:04:22.8]} 12. Bd3 {[%clk 0:04:04]} 12...
e6 {[%clk 0:04:11.2]} 13. Bxf5 {[%clk 0:04:00.1]} 13... gxf5 {[%clk 0:04:08.9]}
14. O-O {[%clk 0:03:50.6]} 14... Nd7 {[%clk 0:04:06.8]} 15. Bf2 {[%clk
0:03:45.2]} 15... fxe5 {[%clk 0:04:01.4]} 16. dxe5 {[%clk 0:03:38.3]} 16... Bf8
{[%clk 0:03:56.4]} 17. Nd4 {[%clk 0:03:35.5]} 17... Rh6 {[%clk 0:03:44.4]} 18.
Nxc6 {[%clk 0:03:33]} 18... Qc7 {[%clk 0:03:43.9]} 19. Nd4 {[%clk 0:03:28.6]}
19... b4 {[%clk 0:03:42.7]} 20. Ncb5 {[%clk 0:03:27.7]} 20... Qb7 {[%clk
0:03:35.7]} 21. a4 {[%clk 0:03:22.1]} 21... Nc5 {[%clk 0:03:28]} 22. c3 {[%clk
0:02:51.7]} 22... Ne4 {[%clk 0:03:25.9]} 23. Qe1 {[%clk 0:02:47.4]} 23... Bc5
{[%clk 0:03:07.2]} 24. cxb4 {[%clk 0:02:40.3]} 24... axb4 {[%clk 0:03:06.3]} 25.
Qc1 {[%clk 0:02:31.9]} 25... Qb6 {[%clk 0:03:00.9]} 26. Qe3 {[%clk 0:01:58.4]}
26... Rg6 {[%clk 0:02:42.7]} 27. Rfd1 {[%clk 0:01:55.8]} 27... Kf8 {[%clk
0:02:27.6]} 28. Rac1 {[%clk 0:01:54.7]} 28... Rxa4 {[%clk 0:02:21]} 29. Qg3
{[%clk 0:01:31.2]} 0-1

[Event "Live Chess"]
[Site "Chess.com"]
[Date "2024.06.01"]
[Round "-"]
[White "Frankie_Badacsonyi"]
[Black "Ferrarifan27"]
[Result "1-0"]
[WhiteElo "2437"]
[BlackElo "2098"]
[TimeControl "300"]
[EndTime "10:51:16 PDT"]
[Termination "Frankie_Badacsonyi won by resignation"]

1. d4 {[%clk 0:04:57.7]} 1... Nf6 {[%clk 0:04:56.4]} 2. c4 {[%clk 0:04:54.1]}
2... e6 {[%clk 0:04:55.2]} 3. Nf3 {[%clk 0:04:53.1]} 3... b6 {[%clk 0:04:51.2]}
4. a3 {[%clk 0:04:51.5]} 4... Bb7 {[%clk 0:04:50]} 5. Nc3 {[%clk 0:04:51.1]}
5... Be7 {[%clk 0:04:48.2]} 6. e3 {[%clk 0:04:49.1]} 6... O-O {[%clk 0:04:47.7]}
7. Bd3 {[%clk 0:04:48.1]} 7... d6 {[%clk 0:04:44]} 8. O-O {[%clk 0:04:47]} 8...
Nbd7 {[%clk 0:04:43.1]} 9. e4 {[%clk 0:04:33.2]} 9... e5 {[%clk 0:04:41.5]} 10.
d5 {[%clk 0:04:31.2]} 10... a5 {[%clk 0:04:39.4]} 11. Bc2 {[%clk 0:04:28.5]}
11... Nc5 {[%clk 0:04:35.2]} 12. Rb1 {[%clk 0:04:06.8]} 12... Ba6 {[%clk
0:04:25.7]} 13. b4 {[%clk 0:03:56]} 13... Bxc4 {[%clk 0:04:23.9]} 14. bxc5
{[%clk 0:03:54.4]} 14... Bxf1 {[%clk 0:04:23]} 15. Qxf1 {[%clk 0:03:53.2]} 15...
bxc5 {[%clk 0:04:20.3]} 16. Ba4 {[%clk 0:03:44.9]} 16... Nd7 {[%clk 0:04:17.5]}
17. Be3 {[%clk 0:03:34.4]} 17... Nb6 {[%clk 0:04:15.6]} 18. Bc6 {[%clk
0:03:32.8]} 18... Rb8 {[%clk 0:04:13.1]} 19. a4 {[%clk 0:03:06.3]} 19... Bf6
{[%clk 0:04:07.9]} 20. Bb5 {[%clk 0:02:59.8]} 20... Qe7 {[%clk 0:04:05.7]} 21.
Nd2 {[%clk 0:02:55.8]} 21... Bg5 {[%clk 0:04:00.5]} 22. Qe2 {[%clk 0:02:54.2]}
22... Bxe3 {[%clk 0:03:59.1]} 23. Qxe3 {[%clk 0:02:54.1]} 23... f5 {[%clk
0:03:56.5]} 24. exf5 {[%clk 0:02:51.7]} 24... Rxf5 {[%clk 0:03:55.3]} 25. Rf1
{[%clk 0:02:37.9]} 25... Rbf8 {[%clk 0:03:53.5]} 26. Nde4 {[%clk 0:02:36.1]}
26... Rf4 {[%clk 0:03:47.6]} 27. f3 {[%clk 0:02:35]} 27... h6 {[%clk 0:03:32.3]}
28. Bc6 {[%clk 0:02:33.2]} 28... R4f7 {[%clk 0:03:22.1]} 29. Qd2 {[%clk
0:02:27.9]} 29... Qh4 {[%clk 0:03:06.5]} 30. Qf2 {[%clk 0:02:23.3]} 30... Rf5
{[%clk 0:02:54.5]} 31. Qxh4 {[%clk 0:02:21.8]} 1-0

[Event "Live Chess"]
[Site "Chess.com"]
[Date "2024.06.01"]
[Round "-"]
[White "Colm_Buckley"]
[Black "GEMdzq"]
[Result "0-1"]
[WhiteElo "1791"]
[BlackElo "2318"]
[TimeControl "300"]
[EndTime "10:51:28 PDT"]
[Termination "GEMdzq won by checkmate"]

1. d4 {[%clk 0:04:56.8]} 1... Nf6 {[%clk 0:04:59.3]} 2. c4 {[%clk 0:04:55.8]}
2... e6 {[%clk 0:04:58.8]} 3. Nc3 {[%clk 0:04:55.3]} 3... c5 {[%clk 0:04:58]} 4.
Nf3 {[%clk 0:04:51.5]} 4... cxd4 {[%clk 0:04:56.9]} 5. Nxd4 {[%clk 0:04:50.5]}
5... Bb4 {[%clk 0:04:56.6]} 6. Bd2 {[%clk 0:04:44.1]} 6... Nc6 {[%clk
0:04:54.8]} 7. Nf3 {[%clk 0:04:38.3]} 7... O-O {[%clk 0:04:52.7]} 8. g3 {[%clk
0:04:35.8]} 8... d5 {[%clk 0:04:51.3]} 9. cxd5 {[%clk 0:04:33.9]} 9... exd5
{[%clk 0:04:50.4]} 10. a3 {[%clk 0:04:28.1]} 10... Bxc3 {[%clk 0:04:45.6]} 11.
Bxc3 {[%clk 0:04:26.5]} 11... Ne4 {[%clk 0:04:45.2]} 12. Bg2 {[%clk 0:04:20]}
12... Nxc3 {[%clk 0:04:37.6]} 13. bxc3 {[%clk 0:04:18.1]} 13... Re8 {[%clk
0:04:36]} 14. O-O {[%clk 0:04:14.6]} 14... Bg4 {[%clk 0:04:34.6]} 15. Qd3 {[%clk
0:04:00.5]} 15... Qd7 {[%clk 0:04:26.6]} 16. Nd4 {[%clk 0:03:55.5]} 16... Ne5
{[%clk 0:04:23.4]} 17. Qd2 {[%clk 0:03:45.8]} 17... h6 {[%clk 0:04:14.4]} 18.
Rfd1 {[%clk 0:03:28.3]} 18... Rac8 {[%clk 0:04:04.2]} 19. f3 {[%clk 0:03:19.8]}
19... Nc4 {[%clk 0:04:01]} 20. Qa2 {[%clk 0:03:01.7]} 20... Bh3 {[%clk
0:03:59.4]} 21. Bxh3 {[%clk 0:02:50.9]} 21... Qxh3 {[%clk 0:03:59.3]} 22. Rf1
{[%clk 0:02:30.9]} 22... Ne3 {[%clk 0:03:53.7]} 23. Rf2 {[%clk 0:02:29.7]} 23...
Rxc3 {[%clk 0:03:51.9]} 24. Nb5 {[%clk 0:02:16.6]} 24... Rc2 {[%clk 0:03:43.2]}
25. Qb3 {[%clk 0:02:11.8]} 25... Qc8 {[%clk 0:03:24]} 26. h4 {[%clk 0:01:54.7]}
26... Qh3 {[%clk 0:03:12.8]} 27. Nd4 {[%clk 0:01:27.1]} 27... Qxg3+ {[%clk
0:03:10]} 28. Kh1 {[%clk 0:01:25.2]} 28... Qxf2 {[%clk 0:03:08.9]} 29. Nxc2
{[%clk 0:01:22.2]} 29... Qg2# {[%clk 0:03:08]} 0-1

[Event "Live Chess"]
[Site "Chess.com"]
[Date "2024.06.01"]
[Round "-"]
[White "SirGerhard"]
[Black "KGreenGator"]
[Result "1-0"]
[WhiteElo "2771"]
[BlackElo "1771"]
[TimeControl "300"]
[EndTime "10:51:30 PDT"]
[Termination "SirGerhard won by resignation"]

1. d4 {[%clk 0:04:58.2]} 1... d5 {[%clk 0:04:58.2]} 2. c4 {[%clk 0:04:57.5]}
2... e6 {[%clk 0:04:56.5]} 3. Nf3 {[%clk 0:04:57]} 3... Nf6 {[%clk 0:04:54.4]}
4. Nc3 {[%clk 0:04:56.4]} 4... g6 {[%clk 0:04:50.2]} 5. Bg5 {[%clk 0:04:54.4]}
5... Bg7 {[%clk 0:04:48.9]} 6. e3 {[%clk 0:04:53.8]} 6... O-O {[%clk 0:04:47.4]}
7. Bd3 {[%clk 0:04:52.9]} 7... Re8 {[%clk 0:04:45.5]} 8. O-O {[%clk 0:04:52.3]}
8... c6 {[%clk 0:04:44.4]} 9. Ne5 {[%clk 0:04:50.9]} 9... Qc7 {[%clk 0:04:42.1]}
10. f4 {[%clk 0:04:49.6]} 10... Nbd7 {[%clk 0:04:39.7]} 11. Qf3 {[%clk 0:04:48]}
11... b6 {[%clk 0:04:35.1]} 12. Rac1 {[%clk 0:04:46.6]} 12... Bb7 {[%clk
0:04:33.6]} 13. cxd5 {[%clk 0:04:45.8]} 13... Nxd5 {[%clk 0:04:29.7]} 14. Nxd5
{[%clk 0:04:32.2]} 14... exd5 {[%clk 0:04:26.8]} 15. Qxd5 {[%clk 0:04:23.3]}
15... Nxe5 {[%clk 0:04:12]} 16. fxe5 {[%clk 0:04:22.5]} 16... cxd5 {[%clk
0:03:58.5]} 17. Rxc7 {[%clk 0:04:21.4]} 1-0

[Event "Live Chess"]
[Site "Chess.com"]
[Date "2024.06.01"]
[Round "-"]
[White "SavagePawn7"]
[Black "Crowded_House"]
[Result "0-1"]
[WhiteElo "684"]
[BlackElo "1767"]
[TimeControl "300"]
[EndTime "10:51:46 PDT"]
[Termination "Crowded_House won by resignation"]

1. e4 {[%clk 0:04:55.8]} 1... e6 {[%clk 0:04:54.6]} 2. d4 {[%clk 0:04:53.6]}
2... d5 {[%clk 0:04:53.3]} 3. c4 {[%clk 0:04:52.1]} 3... dxe4 {[%clk 0:04:46.9]}
4. d5 {[%clk 0:04:49.7]} 4... exd5 {[%clk 0:04:44.7]} 5. cxd5 {[%clk 0:04:48.3]}
5... Ne7 {[%clk 0:04:39.2]} 6. Nc3 {[%clk 0:04:46.1]} 6... g6 {[%clk 0:04:29.9]}
7. Qd4 {[%clk 0:04:34.5]} 7... Rg8 {[%clk 0:04:19.8]} 8. Qxe4 {[%clk 0:04:28.3]}
8... Bf5 {[%clk 0:04:09.9]} 9. Qa4+ {[%clk 0:04:19]} 9... Qd7 {[%clk 0:03:59.1]}
10. Qxd7+ {[%clk 0:04:14.7]} 10... Nxd7 {[%clk 0:03:58.3]} 11. Nf3 {[%clk
0:04:10.2]} 11... Nb6 {[%clk 0:03:50.9]} 12. Bb5+ {[%clk 0:04:03.8]} 12... Bd7
{[%clk 0:03:45.3]} 13. Bxd7+ {[%clk 0:04:00.4]} 13... Nxd7 {[%clk 0:03:44.5]}
14. O-O {[%clk 0:03:58]} 14... O-O-O {[%clk 0:03:42.8]} 15. Nb5 {[%clk
0:03:50.9]} 15... a6 {[%clk 0:03:26.7]} 16. Nc3 {[%clk 0:03:42.8]} 16... Nb6
{[%clk 0:03:23.8]} 17. Be3 {[%clk 0:03:40.6]} 17... Nbxd5 {[%clk 0:03:19.5]} 18.
Nxd5 {[%clk 0:03:34]} 18... Nxd5 {[%clk 0:03:18.5]} 19. Ba7 {[%clk 0:03:16.5]}
19... b6 {[%clk 0:03:10.1]} 20. Rfd1 {[%clk 0:03:11.3]} 20... Kb7 {[%clk
0:02:57.9]} 21. Rac1 {[%clk 0:02:57.3]} 21... Kxa7 {[%clk 0:02:44.1]} 22. Rxd5
{[%clk 0:02:51.8]} 22... Rxd5 {[%clk 0:02:41.7]} 23. Rxc7+ {[%clk 0:02:49.1]}
23... Kb8 {[%clk 0:02:38.5]} 24. Rxf7 {[%clk 0:02:45]} 24... Rd1+ {[%clk
0:02:34.5]} 0-1

[Event "Live Chess"]
[Site "Chess.com"]
[Date "2024.06.01"]
[Round "-"]
[White "Duke_of_Bebington"]
[Black "febray_27"]
[Result "0-1"]
[WhiteElo "1628"]
[BlackElo "2028"]
[TimeControl "300"]
[EndTime "10:52:01 PDT"]
[Termination "febray_27 won by resignation"]

1. e4 {[%clk 0:04:58.1]} 1... c5 {[%clk 0:04:58.6]} 2. c3 {[%clk 0:04:56.9]}
2... e6 {[%clk 0:04:57.2]} 3. d4 {[%clk 0:04:56]} 3... cxd4 {[%clk 0:04:56.6]}
4. cxd4 {[%clk 0:04:55.3]} 4... d5 {[%clk 0:04:55.9]} 5. Bd3 {[%clk 0:04:42.4]}
5... dxe4 {[%clk 0:04:52.7]} 6. Bxe4 {[%clk 0:04:41.2]} 6... Nf6 {[%clk
0:04:52.3]} 7. Nc3 {[%clk 0:04:38.8]} 7... Bb4 {[%clk 0:04:50.2]} 8. Qf3 {[%clk
0:04:31.3]} 8... Nxe4 {[%clk 0:04:28.9]} 9. Qxe4 {[%clk 0:04:29.8]} 9... O-O
{[%clk 0:04:28.2]} 10. Ne2 {[%clk 0:04:27.3]} 10... Nc6 {[%clk 0:04:27]} 11. O-O
{[%clk 0:04:25.1]} 11... a6 {[%clk 0:04:09.4]} 12. Bf4 {[%clk 0:04:17.8]} 12...
Bd6 {[%clk 0:04:05.6]} 13. Rac1 {[%clk 0:03:59.6]} 13... Bxf4 {[%clk 0:04:00.8]}
14. Nxf4 {[%clk 0:03:58.3]} 14... Bd7 {[%clk 0:03:50.2]} 15. d5 {[%clk
0:03:51.1]} 15... exd5 {[%clk 0:03:45.6]} 16. Nfxd5 {[%clk 0:03:46.7]} 16... Re8
{[%clk 0:03:37.7]} 17. Qf3 {[%clk 0:03:31.2]} 17... Nd4 {[%clk 0:03:21.7]} 18.
Qd3 {[%clk 0:03:27.9]} 18... Nb5 {[%clk 0:03:11.1]} 19. Qg3 {[%clk 0:02:59.1]}
19... Nxc3 {[%clk 0:03:02.9]} 20. Rxc3 {[%clk 0:02:48.1]} 20... Bc6 {[%clk
0:03:00.9]} 21. Ne3 {[%clk 0:02:40.2]} 21... Re6 {[%clk 0:02:46.8]} 22. Rd1
{[%clk 0:02:21.6]} 22... Qb6 {[%clk 0:02:34.3]} 23. Nf5 {[%clk 0:01:57.9]} 23...
g6 {[%clk 0:02:19.7]} 24. Nd4 {[%clk 0:01:49.9]} 24... Rd8 {[%clk 0:02:06]} 25.
Qd3 {[%clk 0:00:57.8]} 25... Red6 {[%clk 0:01:54]} 26. Rb3 {[%clk 0:00:43.8]}
26... Qxd4 {[%clk 0:01:50.1]} 27. Qxd4 {[%clk 0:00:41.9]} 27... Rxd4 {[%clk
0:01:49.1]} 28. Rxd4 {[%clk 0:00:41.2]} 28... Rxd4 {[%clk 0:01:48.6]} 0-1

[Event "Live Chess"]
[Site "Chess.com"]
[Date "2024.06.01"]
[Round "-"]
[White "Isambard_Thomas"]
[Black "koekoekoe"]
[Result "1-0"]
[WhiteElo "2158"]
[BlackElo "2090"]
[TimeControl "300"]
[EndTime "10:52:04 PDT"]
[Termination "Isambard_Thomas won by checkmate"]

1. d4 {[%clk 0:04:58.2]} 1... d5 {[%clk 0:04:59.6]} 2. Nf3 {[%clk 0:04:57.6]}
2... Nf6 {[%clk 0:04:58.5]} 3. Bg5 {[%clk 0:04:57]} 3... Bf5 {[%clk 0:04:57.2]}
4. e3 {[%clk 0:04:56.3]} 4... e6 {[%clk 0:04:56.5]} 5. Bd3 {[%clk 0:04:53.2]}
5... Bg6 {[%clk 0:04:55.3]} 6. c3 {[%clk 0:04:52]} 6... c6 {[%clk 0:04:50.3]} 7.
Qe2 {[%clk 0:04:51.2]} 7... Qb6 {[%clk 0:04:47.6]} 8. b3 {[%clk 0:04:49.8]} 8...
Nbd7 {[%clk 0:04:45.4]} 9. O-O {[%clk 0:04:46.9]} 9... Be7 {[%clk 0:04:41.9]}
10. Nbd2 {[%clk 0:04:36.1]} 10... O-O {[%clk 0:04:40.8]} 11. Bxf6 {[%clk
0:03:59.1]} 11... Bxf6 {[%clk 0:04:28.8]} 12. Rac1 {[%clk 0:03:55.5]} 12... Qa5
{[%clk 0:04:16]} 13. a4 {[%clk 0:03:51.9]} 13... c5 {[%clk 0:04:06.7]} 14. Rfe1
{[%clk 0:03:25]} 14... Rac8 {[%clk 0:03:51]} 15. Bb5 {[%clk 0:03:20]} 15... cxd4
{[%clk 0:03:12.3]} 16. Bxd7 {[%clk 0:03:10.4]} 16... d3 {[%clk 0:02:55.7]} 17.
Qf1 {[%clk 0:03:05.6]} 17... Rxc3 {[%clk 0:02:53.9]} 18. b4 {[%clk 0:02:38.8]}
18... Qc7 {[%clk 0:02:14.7]} 19. Rxc3 {[%clk 0:02:37.1]} 19... Qxc3 {[%clk
0:02:08.6]} 20. Rc1 {[%clk 0:02:32.2]} 20... Qxb4 {[%clk 0:02:05.1]} 21. Rb1
{[%clk 0:02:29.2]} 21... Qd6 {[%clk 0:01:53.5]} 22. Rxb7 {[%clk 0:02:24.2]}
22... Qa6 {[%clk 0:01:37.7]} 23. Rb1 {[%clk 0:02:14.6]} 23... Bc3 {[%clk
0:01:25.4]} 24. Bb5 {[%clk 0:02:07.5]} 24... Qa5 {[%clk 0:01:21.8]} 25. Nb3
{[%clk 0:02:04.9]} 25... Qb4 {[%clk 0:01:12.4]} 26. Nbd4 {[%clk 0:02:04]} 26...
Qa3 {[%clk 0:01:04.2]} 27. Rb3 {[%clk 0:01:49.8]} 27... Qc5 {[%clk 0:00:45.4]}
28. Bxd3 {[%clk 0:01:48.5]} 28... Rc8 {[%clk 0:00:32.6]} 29. g3 {[%clk
0:01:34.2]} 29... Bh5 {[%clk 0:00:27.8]} 30. Qh3 {[%clk 0:01:06.3]} 30... Bxf3
{[%clk 0:00:21.3]} 31. Nxf3 {[%clk 0:01:03.2]} 31... a5 {[%clk 0:00:18.1]} 32.
Qxh7+ {[%clk 0:00:54.3]} 32... Kf8 {[%clk 0:00:17.5]} 33. Rb7 {[%clk 0:00:46.1]}
33... Bf6 {[%clk 0:00:12.2]} 34. Qh8# {[%clk 0:00:44.2]} 1-0